bitfinex/quotes_SOLUSD_20230905
["timestamp","ask_amount","ask_price","bid_price","bid_amount"]
[1693919615626,7.919,19.699,19.685,20.0]
[1693919616013,4.06335598,19.698,19.685,20.0]
[1693919616226,66.98235598,19.698,19.681,20.0]
[1693919616424,66.98235598,19.698,19.682,55.60430668]
[1693919616609,66.98235598,19.698,19.683,20.0]
[1693919616813,62.919,19.698,19.684,0.60430668]
[1693919617022,2.01735755,19.697,19.684,0.60430668]
[1693919617807,57.01735755,19.697,19.683,20.0]
[1693919618011,57.01735755,19.697,19.681,20.0]
[1693919618211,57.01735755,19.697,19.682,0.60430668]
[1693919618414,64.93735755,19.697,19.682,0.60430668]
[1693919619021,92.7046,19.696,19.682,0.60430668]
[1693919619220,2.14871807,19.695,19.682,0.60430668]
[1693919621931,2.14871807,19.695,19.682,25.96823913]
[1693919622114,92.7046,19.696,19.683,75.0]
[1693919622426,1.97333051,19.697,19.684,0.60430668]
[1693919622625,3.21815685,19.701,19.684,25.96823913]
[1693919622812,3.21815685,19.701,19.69,31.4]
[1693919623916,58.21815685,19.701,19.69,31.4]
[1693919625124,3.21815685,19.701,19.69,31.4]
[1693919626721,7.918,19.7,19.69,31.4]
[1693919626914,3.27220925,19.699,19.685,25.36393245]
[1693919627119,3.27220925,19.699,19.686,55.0]
[1693919627315,3.69792456,19.7,19.686,55.0]
[1693919627733,3.69792456,19.7,19.685,25.36393245]
[1693919627928,90.09792456,19.7,19.684,55.33860864]
[1693919628129,58.69792456,19.7,19.685,20.0]
[1693919628320,11.61692456,19.7,19.685,20.0]
[1693919628521,55.0,19.699,19.685,20.0]
[1693919628721,3.77991366,19.698,19.685,20.0]
[1693919629127,11.69891366,19.698,19.685,20.0]
[1693919629326,55.0,19.697,19.685,20.0]
[1693919629537,3.77991366,19.696,19.685,20.0]
[1693919629832,3.77991366,19.696,19.682,0.60430668]
[1693919630233,11.69991366,19.696,19.682,0.60430668]
[1693919631219,11.69991366,19.696,19.681,0.60430668]
[1693919631220,55.0,19.695,19.681,0.60430668]
[1693919631424,7.922,19.691,19.673,55.05932699]
[1693919631626,4.34030368,19.69,19.675,0.60430668]
[1693919631830,67.26330368,19.69,19.675,0.60430668]
[1693919632924,67.26330368,19.69,19.675,55.60430668]
[1693919633126,98.66330368,19.69,19.674,25.36393245]
[1693919633331,98.66330368,19.69,19.675,20.0]
[1693919633541,98.66330368,19.69,19.674,20.0]
[1693919634841,98.66330368,19.69,19.675,0.60430668]
[1693919635429,98.66330368,19.69,19.673,54.45502031]
[1693919635743,20.0,19.689,19.67,31.4]
[1693919636038,4.34030368,19.683,19.664,53.15551142]
[1693919636243,59.34030368,19.683,19.665,45.36393245]
[1693919636433,7.927,19.68,19.666,0.60430668]
[1693919636940,12.26630368,19.682,19.666,0.60430668]
[1693919637141,55.0,19.681,19.666,0.60430668]
[1693919637441,4.34030368,19.68,19.666,55.60430668]
[1693919638331,7.926,19.68,19.666,55.60430668]
[1693919639341,55.0,19.681,19.666,55.60430668]
[1693919639556,2.21311276,19.68,19.666,55.60430668]
[1693919640440,2.21311276,19.68,19.666,80.96823913]
[1693919640643,2.21311276,19.68,19.666,25.96823913]
[1693919640948,10.14011276,19.68,19.666,25.96823913]
[1693919641243,7.927,19.68,19.666,25.96823913]
[1693919642247,55.0,19.679,19.666,25.96823913]
[1693919642443,62.927,19.679,19.666,25.96823913]
[1693919645148,45.598,19.689,19.67,31.4]
[1693919645336,24.34030368,19.687,19.67,31.4]
[1693919645538,24.34030368,19.687,19.671,0.53399274]
[1693919646240,7.925,19.684,19.671,0.53399274]
[1693919646441,4.34030368,19.683,19.67,31.4]
[1693919646639,12.26530368,19.683,19.67,31.4]
[1693919647339,7.925,19.683,19.671,0.60430668]
[1693919648045,7.925,19.685,19.671,0.60430668]
[1693919648348,4.34030368,19.684,19.671,0.60430668]
[1693919648648,12.26530368,19.684,19.671,0.60430668]
[1693919649748,12.26530368,19.684,19.67,31.4]
[1693919651444,12.26630368,19.682,19.67,31.4]
[1693919651657,55.0,19.681,19.67,31.4]
[1693919651947,62.926,19.681,19.67,31.4]
[1693919652140,4.34030368,19.68,19.67,31.4]
[1693919652340,12.26730368,19.68,19.668,0.60430668]
[1693919652944,7.927,19.68,19.668,0.60430668]
[1693919653335,55.0,19.681,19.67,31.4]
[1693919653649,4.34030368,19.68,19.67,31.4]
[1693919654335,7.926,19.682,19.67,31.4]
[1693919654536,7.925,19.683,19.671,0.60430668]
[1693919654737,55.0,19.682,19.671,0.60430668]
[1693919654945,12.26630368,19.681,19.67,31.4]
[1693919655147,7.926,19.681,19.67,31.4]
[1693919655346,7.925,19.683,19.67,31.4]
[1693919655559,57.23575788,19.682,19.671,0.60430668]
[1693919655849,57.23575788,19.682,19.67,31.4]
[1693919656443,2.23575788,19.682,19.67,31.4]
[1693919656749,7.925,19.683,19.671,0.60430668]
[1693919657537,4.34030368,19.682,19.671,0.60430668]
[1693919657737,7.926,19.681,19.671,0.60430668]
[1693919659645,4.34030368,19.68,19.668,0.60430668]
[1693919659851,7.927,19.679,19.67,31.4]
[1693919662340,7.927,19.679,19.667,53.15551142]
[1693919662546,7.927,19.679,19.665,20.0]
[1693919662547,7.927,19.679,19.668,0.60430668]
[1693919662746,7.927,19.679,19.666,0.60430668]
[1693919662954,7.927,19.679,19.664,0.60430668]
[1693919663254,7.927,19.679,19.664,80.96823913]
[1693919663440,7.927,19.679,19.666,0.60430668]
[1693919667753,55.0,19.678,19.666,0.60430668]
[1693919668052,7.928,19.676,19.666,0.60430668]
[1693919669254,57.39875034,19.675,19.66,79.40214688]
[1693919669450,57.39875034,19.675,19.638,1235.1]
[1693919669451,89.473,19.671,19.653,141.06256477]
[1693919669657,2.94273716,19.67,19.655,25.36393245]
[1693919669963,7.932,19.667,19.656,0.60430668]
[1693919671257,55.0,19.666,19.654,0.60430668]
[1693919671453,55.0,19.666,19.654,20.60430668]
[1693919671759,157.6098,19.666,19.654,0.60430668]
[1693919672360,2.01457768,19.665,19.654,0.60430668]
[1693919672556,157.6098,19.666,19.654,0.60430668]
[1693919672861,157.6098,19.666,19.654,20.60430668]
[1693919674662,157.6098,19.666,19.654,0.60430668]
[1693919674967,157.6098,19.666,19.651,20.0]
[1693919674968,157.6098,19.666,19.652,0.60430668]
[1693919678868,31.4,19.66,19.648,0.60430668]
[1693919679059,7.936,19.657,19.643,16.07758912]
[1693919679260,55.0,19.656,19.643,0.60430668]
[1693919679450,12.27730368,19.655,19.643,0.60430668]
[1693919679862,7.937,19.655,19.643,20.60430668]
[1693919680565,7.937,19.655,19.643,0.60430668]
[1693919680965,7.936,19.657,19.643,0.60430668]
[1693919681462,4.34030368,19.656,19.643,0.60430668]
[1693919681652,12.27630368,19.656,19.643,0.60430668]
[1693919681858,12.27630368,19.656,19.643,20.60430668]
[1693919682953,4.34030368,19.657,19.643,98.23746111]
[1693919683152,97.6932,19.658,19.644,180.63530131]
[1693919683352,97.6932,19.658,19.646,0.60430668]
[1693919683566,97.6932,19.658,19.647,25.36393245]
[1693919683752,97.6932,19.658,19.648,0.60430668]
[1693919683952,97.6932,19.658,19.648,25.96823913]
[1693919684165,97.6932,19.658,19.649,25.36393245]
[1693919684462,20.0,19.665,19.65,0.60430668]
[1693919684762,20.0,19.665,19.646,52.26922198]
[1693919684763,4.30675504,19.662,19.647,0.60430668]
[1693919684965,59.30675504,19.662,19.647,25.96823913]
[1693919685370,67.24075504,19.662,19.647,25.96823913]
[1693919685754,4.30675504,19.66,19.647,25.96823913]
[1693919685949,4.30675504,19.661,19.647,25.96823913]
[1693919686161,59.30675504,19.661,19.647,25.96823913]
[1693919686356,67.24075504,19.661,19.647,25.96823913]
[1693919686956,67.24075504,19.661,19.647,25.36393245]
[1693919688058,67.24075504,19.661,19.646,52.26922198]
[1693919688259,67.24075504,19.661,19.647,0.54987984]
[1693919688871,97.318,19.66,19.647,0.54987984]
[1693919689059,7.935,19.658,19.646,52.26922198]
[1693919689258,4.34030368,19.657,19.646,52.26922198]
[1693919690367,4.34030368,19.657,19.645,20.0]
[1693919690575,12.27630368,19.657,19.645,20.0]
[1693919690775,12.27630368,19.657,19.644,20.0]
[1693919690957,4.34030368,19.657,19.644,20.0]
[1693919691162,59.34030368,19.658,19.644,20.0]
[1693919691362,7.936,19.657,19.644,20.0]
[1693919691674,4.34030368,19.656,19.644,20.0]
[1693919691879,4.34030368,19.657,19.645,25.96823913]
[1693919692463,4.34030368,19.657,19.645,25.36393245]
[1693919694762,12.27630368,19.657,19.645,25.36393245]
[1693919695058,12.27630368,19.657,19.644,52.26922198]
[1693919695276,55.0,19.656,19.645,20.0]
[1693919695481,7.937,19.653,19.645,20.0]
[1693919696079,2.27393894,19.654,19.642,0.60430668]
[1693919696570,7.937,19.654,19.642,0.60430668]
[1693919696771,7.939,19.65,19.641,20.0]
[1693919696965,2.37764963,19.652,19.639,0.60430668]
[1693919697165,7.938,19.652,19.639,0.60430668]
[1693919697369,55.0,19.651,19.639,0.60430668]
[1693919697565,2.44722266,19.652,19.639,25.96823913]
[1693919697880,2.44722266,19.652,19.64,20.0]
[1693919698069,2.44722266,19.652,19.641,0.60430668]
[1693919698383,62.937,19.653,19.64,0.60430668]
[1693919698562,1.93767399,19.652,19.64,0.60430668]
[1693919698762,7.939,19.649,19.634,113.26080791]
[1693919699077,7.939,19.649,19.636,0.60430668]
[1693919699767,55.0,19.648,19.636,0.60430668]
[1693919700473,7.939,19.65,19.636,78.23746111]
[1693919700678,99.8491,19.652,19.637,77.63315443]
[1693919700863,62.938,19.651,19.638,0.60430668]
[1693919702474,7.938,19.651,19.638,0.60430668]
[1693919702676,7.938,19.651,19.638,80.96823913]
[1693919703779,7.938,19.653,19.638,55.60430668]
[1693919703977,7.938,19.653,19.639,25.36393245]
[1693919704287,7.938,19.653,19.64,0.60430668]
[1693919704486,7.937,19.654,19.64,0.60430668]
[1693919704690,7.937,19.654,19.64,55.60430668]
[1693919704875,7.936,19.655,19.64,55.60430668]
[1693919705070,10.57852753,19.654,19.64,55.60430668]
[1693919705271,7.937,19.654,19.64,55.60430668]
[1693919705871,7.937,19.654,19.64,0.60430668]
[1693919706071,2.71655283,19.653,19.64,109.69746111]
[1693919706272,7.935,19.659,19.641,80.36393245]
[1693919706580,7.936,19.657,19.642,0.60430668]
[1693919707486,100.0651,19.659,19.642,25.96823913]
[1693919707783,10.21875278,19.658,19.643,20.0]
[1693919708083,7.935,19.658,19.644,0.60430668]
[1693919709285,55.0,19.657,19.644,0.60430668]
[1693919709487,7.937,19.655,19.644,0.60430668]
[1693919710174,55.0,19.654,19.644,0.60430668]
[1693919710573,7.937,19.653,19.643,0.60430668]
[1693919710780,55.0,19.652,19.643,0.60430668]
[1693919711471,55.0,19.653,19.643,0.60430668]
[1693919712584,62.937,19.653,19.643,0.60430668]
[1693919713773,55.0,19.653,19.643,0.60430668]
[1693919713985,7.937,19.654,19.643,0.60430668]
[1693919714487,7.936,19.656,19.643,0.60430668]
[1693919714683,55.0,19.655,19.643,0.60430668]
[1693919714888,62.936,19.655,19.643,0.60430668]
[1693919715979,7.936,19.655,19.643,0.60430668]
[1693919716286,100.0651,19.659,19.643,25.96823913]
[1693919716489,7.935,19.659,19.645,0.60430668]
[1693919716679,7.935,19.659,19.645,20.60430668]
[1693919720993,55.0,19.658,19.645,20.60430668]
[1693919721493,62.935,19.658,19.645,20.60430668]
[1693919726990,7.935,19.658,19.645,20.60430668]
[1693919727304,3.34046039,19.662,19.647,0.60430668]
[1693919727490,3.34046039,19.662,19.647,25.96823913]
[1693919727491,11.27446039,19.662,19.647,25.96823913]
[1693919727691,7.934,19.662,19.647,25.96823913]
[1693919728006,7.934,19.662,19.65,31.46]
[1693919728714,7.934,19.662,19.651,0.51336592]
[1693919728997,7.934,19.662,19.651,0.60430668]
[1693919729891,25.629,19.665,19.651,0.60430668]
[1693919730091,7.933,19.663,19.651,0.60430668]
[1693919730498,2.30480847,19.662,19.65,31.46]
[1693919730800,10.23880847,19.662,19.651,0.51168152]
[1693919731005,7.934,19.662,19.65,31.46]
[1693919731194,55.0,19.661,19.651,0.60430668]
[1693919731394,7.935,19.658,19.645,20.0]
[1693919731604,57.30480847,19.657,19.646,0.59263277]
[1693919731797,7.937,19.655,19.645,15.29007633]
[1693919732104,7.937,19.655,19.646,0.60430668]
[1693919732407,7.937,19.655,19.645,15.29007633]
[1693919734513,7.937,19.655,19.644,20.0]
[1693919734697,7.937,19.655,19.641,20.0]
[1693919734903,7.937,19.655,19.642,0.60430668]
[1693919743106,1.89101139,19.654,19.642,0.60430668]
[1693919743813,7.937,19.655,19.642,0.60430668]
[1693919744014,96.732,19.656,19.642,80.96823913]
[1693919744202,96.732,19.656,19.643,20.0]
[1693919744404,96.732,19.656,19.644,0.60430668]
[1693919749911,130.309,19.656,19.644,0.60430668]
[1693919750117,55.0,19.655,19.644,0.60430668]
[1693919750418,55.0,19.655,19.643,20.0]
[1693919750614,7.937,19.654,19.642,0.60430668]
[1693919750815,55.0,19.653,19.642,0.60430668]
[1693919751211,55.0,19.654,19.642,0.60430668]
[1693919751518,7.937,19.654,19.642,0.60430668]
[1693919753114,104.668,19.656,19.642,0.60430668]
[1693919754213,1.87934597,19.655,19.642,0.60430668]
[1693919754412,9.81534597,19.655,19.642,0.60430668]
[1693919754708,7.936,19.655,19.642,0.60430668]
[1693919755217,55.0,19.654,19.642,0.60430668]
[1693919755409,7.938,19.652,19.642,0.60430668]
[1693919755810,7.937,19.653,19.642,0.60430668]
[1693919758512,55.0,19.654,19.642,0.60430668]
[1693919760525,88.58,19.654,19.642,0.60430668]
[1693919760718,2.76732395,19.653,19.639,0.60430668]
[1693919760918,7.939,19.649,19.639,0.60430668]
[1693919761312,7.939,19.649,19.635,20.60430668]
[1693919761516,7.939,19.649,19.636,25.36393245]
[1693919761723,7.939,19.649,19.637,0.60430668]
[1693919762416,99.7815,19.648,19.637,0.60430668]
[1693919762719,107.7205,19.648,19.637,0.60430668]
[1693919763133,99.7815,19.648,19.637,0.60430668]
[1693919763331,99.7815,19.648,19.64,31.49]
[1693919763631,99.7815,19.648,19.641,0.60430668]
[1693919764616,25.643,19.654,19.641,0.60430668]
[1693919764617,7.938,19.652,19.641,0.60430668]
[1693919764832,41.11145037,19.656,19.641,0.60430668]
[1693919764833,1.88979726,19.655,19.642,25.36393245]
[1693919765015,10.29924697,19.659,19.643,87.38077668]
[1693919765217,7.935,19.66,19.644,80.18982109]
[1693919765415,2.37370795,19.659,19.65,31.49]
[1693919765622,7.935,19.658,19.645,20.0]
[1693919765822,7.935,19.658,19.646,0.60430668]
[1693919767631,90.0603,19.657,19.646,0.60430668]
[1693919767839,97.9963,19.657,19.646,0.60430668]
[1693919769126,57.07789423,19.656,19.644,54.82588864]
[1693919769327,7.936,19.655,19.645,20.0]
[1693919769520,55.0,19.656,19.645,20.0]
[1693919769730,1.88712034,19.655,19.645,20.0]
[1693919771232,7.936,19.655,19.645,20.0]
[1693919772834,55.0,19.656,19.645,20.0]
[1693919773026,2.04885925,19.655,19.645,20.0]
[1693919773422,62.936,19.656,19.645,20.0]
[1693919773917,1.88548118,19.655,19.645,20.0]
[1693919775326,9.82148118,19.655,19.645,20.0]
[1693919775628,7.936,19.655,19.645,20.0]
[1693919775831,2.27181456,19.654,19.645,20.0]
[1693919776223,2.70690215,19.655,19.645,20.0]
[1693919779026,2.70690215,19.655,19.644,54.82588864]
[1693919779427,2.70690215,19.655,19.65,31.49]
[1693919779629,7.935,19.659,19.65,31.49]
[1693919779828,4.06910445,19.658,19.65,31.49]
[1693919780040,12.00410445,19.658,19.65,31.49]
[1693919780237,7.935,19.658,19.65,31.49]
[1693919780737,7.935,19.658,19.645,20.0]
[1693919781041,12.00510445,19.656,19.645,20.0]
[1693919781244,7.936,19.656,19.645,20.0]
[1693919782156,25.636,19.66,19.645,20.0]
[1693919782332,7.936,19.656,19.65,31.49]
[1693919782524,7.936,19.656,19.645,20.0]
[1693919782730,7.936,19.656,19.646,0.60430668]
[1693919783130,7.936,19.656,19.645,20.0]
[1693919794646,3.25375049,19.655,19.645,20.0]
[1693919794851,11.19075049,19.655,19.645,20.0]
[1693919795155,7.937,19.655,19.645,20.0]
[1693919797755,55.0,19.654,19.64,56.85393245]
[1693919797948,55.0,19.654,19.64,31.49]
[1693919797949,7.939,19.65,19.64,31.49]
[1693919798355,55.0,19.649,19.635,131.58641242]
[1693919798556,7.94,19.647,19.635,131.58641242]
[1693919798756,7.94,19.647,19.636,0.60430668]
[1693919799358,7.94,19.647,19.635,131.58641242]
[1693919799951,7.939,19.648,19.635,131.58641242]
[1693919801162,7.939,19.648,19.635,172.15667717]
[1693919803467,55.0,19.649,19.635,172.15667717]
[1693919803771,55.0,19.65,19.64,31.49]
[1693919803953,7.938,19.652,19.64,31.49]
[1693919806575,2.13384819,19.653,19.64,31.49]
[1693919806777,4.16508874,19.655,19.641,155.18982109]
[1693919806993,7.936,19.656,19.642,0.60430668]
[1693919807193,4.16508874,19.655,19.643,25.36393245]
[1693919807383,4.16508874,19.655,19.644,20.0]
[1693919807575,7.937,19.655,19.644,20.0]
[1693919807779,4.16508874,19.654,19.644,20.0]
[1693919807990,7.937,19.653,19.642,20.0]
[1693919809677,55.0,19.654,19.642,20.0]
[1693919809890,2.26500802,19.653,19.642,20.0]
[1693919810091,55.0,19.654,19.642,20.0]
[1693919810292,2.05159268,19.653,19.642,20.0]
[1693919810679,55.0,19.654,19.642,20.0]
[1693919811289,7.937,19.653,19.642,20.0]
[1693919811491,55.0,19.652,19.642,20.0]
[1693919812582,55.0,19.652,19.643,0.60430668]
[1693919813895,7.937,19.655,19.643,0.60430668]
[1693919814099,55.0,19.654,19.643,0.60430668]
[1693919814696,55.0,19.654,19.642,20.0]
[1693919816898,2.00342016,19.653,19.642,20.0]
[1693919817198,2.00342016,19.653,19.641,54.82588864]
[1693919817199,55.0,19.654,19.641,54.82588864]
[1693919817385,55.0,19.654,19.642,20.0]
[1693919817585,62.937,19.654,19.643,0.60430668]
[1693919817999,1.8835663,19.653,19.642,20.0]
[1693919818590,62.937,19.654,19.642,20.0]
[1693919819099,2.01181697,19.653,19.642,20.0]
[1693919819502,62.937,19.654,19.642,20.0]
[1693919819800,2.12609072,19.656,19.643,0.52980485]
[1693919820306,12.055871,19.658,19.643,25.8937373]
[1693919820496,12.055871,19.658,19.644,20.0]
[1693919820697,4.120871,19.658,19.65,31.49]
[1693919820886,4.34030368,19.667,19.65,31.49]
[1693919821212,4.34030368,19.669,19.651,207.1907191]
[1693919821410,24.34030368,19.676,19.66,31.49]
[1693919821712,7.929,19.674,19.66,31.49]
[1693919821898,4.34030368,19.673,19.66,31.49]
[1693919822104,7.93,19.671,19.66,31.49]
[1693919822299,4.34030368,19.67,19.66,31.49]
[1693919822995,4.34030368,19.67,19.653,0.60430668]
[1693919823304,4.34030368,19.67,19.654,25.36393245]
[1693919823608,59.34030368,19.67,19.655,75.60430668]
[1693919823798,59.34030368,19.67,19.655,75.0]
[1693919824000,59.34030368,19.67,19.656,0.49412925]
[1693919824306,4.34030368,19.67,19.656,0.49412925]
[1693919824497,4.34030368,19.671,19.656,25.8580617]
[1693919824697,4.34030368,19.673,19.657,55.0]
[1693919824896,4.34030368,19.673,19.658,0.60430668]
[1693919825093,12.26930368,19.673,19.658,0.60430668]
[1693919825495,12.26930368,19.673,19.657,55.0]
[1693919825796,55.0,19.672,19.657,55.0]
[1693919825991,4.34030368,19.671,19.657,55.0]
[1693919828008,12.27030368,19.671,19.657,55.0]
[1693919829506,4.34030368,19.671,19.657,55.0]
[1693919830916,4.34030368,19.671,19.658,0.49580799]
[1693919831105,4.34030368,19.671,19.657,55.0]
[1693919831305,4.34030368,19.671,19.658,0.53220449]
[1693919832018,4.34030368,19.671,19.657,55.0]
[1693919832210,4.34030368,19.669,19.656,25.36393245]
[1693919832410,12.27130368,19.669,19.655,20.0]
[1693919832723,12.27130368,19.669,19.654,20.0]
[1693919832724,55.0,19.668,19.654,20.0]
[1693919833015,7.933,19.665,19.654,20.0]
[1693919833205,4.34030368,19.664,19.654,20.0]
[1693919833405,7.933,19.665,19.654,20.0]
[1693919834015,7.932,19.666,19.654,20.0]
[1693919834213,4.34030368,19.665,19.654,20.0]
[1693919835503,7.932,19.665,19.654,20.0]
[1693919836814,10.38495287,19.667,19.654,20.0]
[1693919839800,55.0,19.666,19.65,46.81148523]
[1693919840000,7.934,19.662,19.651,20.0]
[1693919840205,55.0,19.661,19.651,20.0]
[1693919840715,62.934,19.661,19.651,20.0]
[1693919840918,55.0,19.661,19.651,20.0]
[1693919841216,55.0,19.661,19.652,0.51634069]
[1693919841399,55.0,19.661,19.651,20.0]
[1693919841807,55.0,19.661,19.652,20.0]
[1693919842010,55.0,19.661,19.651,20.0]
[1693919843211,62.434,19.661,19.651,20.0]
[1693919843517,62.434,19.661,19.651,19.5]
[1693919843817,54.5,19.661,19.651,19.5]
[1693919844023,7.934,19.663,19.651,19.5]
[1693919844209,2.0589264,19.662,19.651,19.5]
[1693919844407,9.9929264,19.662,19.651,19.5]
[1693919844608,7.934,19.662,19.651,19.5]
[1693919845313,55.0,19.661,19.651,19.5]
[1693919845513,2.1672696,19.66,19.651,19.5]
[1693919846207,55.0,19.661,19.651,19.5]
[1693919847512,2.0022146,19.66,19.651,19.5]
[1693919847706,55.0,19.661,19.651,19.5]
[1693919849509,1.97760651,19.66,19.651,19.5]
[1693919852325,55.0,19.661,19.651,19.5]
[1693919852513,55.0,19.661,19.65,31.45]
[1693919852719,2.5217529,19.66,19.65,31.45]
[1693919852930,10.4557529,19.66,19.65,31.45]
[1693919853111,55.0,19.659,19.65,31.45]
[1693919853313,2.5217529,19.658,19.65,31.45]
[1693919853616,55.0,19.659,19.65,31.45]
[1693919853826,55.0,19.66,19.65,31.45]
[1693919854121,2.5217529,19.659,19.65,31.45]
[1693919855625,55.0,19.66,19.65,31.45]
[1693919858823,55.0,19.658,19.643,100.79412777]
[1693919859023,1.9844709,19.657,19.643,100.79412777]
[1693919860937,1.9844709,19.657,19.644,54.82588864]
[1693919861131,1.9844709,19.657,19.65,31.45]
[1693919861329,62.935,19.658,19.65,31.45]
[1693919861528,1.98685995,19.657,19.65,31.45]
[1693919863527,55.0,19.658,19.65,31.45]
[1693919864333,1.98032403,19.657,19.65,31.45]
[1693919872237,7.935,19.658,19.65,31.45]
[1693919873238,3.10809707,19.657,19.65,31.45]
[1693919874140,66.56080013,19.665,19.65,31.45]
[1693919874141,3.10809707,19.661,19.651,20.0]
[1693919874327,4.34030368,19.667,19.651,100.36393245]
[1693919874523,94.8761,19.67,19.651,100.36393245]
[1693919874524,4.34030368,19.669,19.651,100.36393245]
[1693919874928,4.34030368,19.672,19.652,0.60430668]
[1693919875130,7.931,19.668,19.652,0.60430668]
[1693919875326,4.34030368,19.667,19.652,0.60430668]
[1693919875534,4.34030368,19.667,19.651,100.36393245]
[1693919875736,67.27230368,19.667,19.652,0.60430668]
[1693919875934,67.27230368,19.667,19.651,20.0]
[1693919878445,59.34030368,19.667,19.651,20.0]
[1693919878642,4.34030368,19.667,19.651,20.0]
[1693919878836,62.932,19.666,19.651,20.0]
[1693919879032,4.34030368,19.665,19.651,20.0]
[1693919879330,59.34030368,19.665,19.651,20.0]
[1693919880642,4.34030368,19.665,19.651,45.36393245]
[1693919880832,4.34030368,19.671,19.653,0.58072365]
[1693919881031,4.34030368,19.671,19.66,31.45]
[1693919881230,4.34030368,19.678,19.661,55.0]
[1693919881452,7.928,19.676,19.662,20.0]
[1693919881655,4.34030368,19.675,19.662,20.0]
[1693919881836,4.34030368,19.677,19.662,20.0]
[1693919882143,4.34030368,19.683,19.662,20.0]
[1693919882529,7.927,19.679,19.662,20.0]
[1693919882738,4.34030368,19.678,19.662,20.0]
[1693919882944,12.26730368,19.679,19.661,20.0]
[1693919883144,25.608,19.682,19.661,20.0]
[1693919883347,4.34030368,19.681,19.661,20.0]
[1693919883956,7.928,19.678,19.661,20.0]
[1693919884248,59.34030368,19.677,19.661,20.0]
[1693919884451,7.928,19.676,19.661,20.0]
[1693919884634,59.34030368,19.675,19.661,20.0]
[1693919885037,67.26830368,19.675,19.661,20.0]
[1693919885350,59.34030368,19.675,19.661,20.0]
[1693919885650,4.34030368,19.675,19.661,20.0]
[1693919886551,12.26830368,19.675,19.661,20.0]
[1693919887238,4.34030368,19.675,19.661,20.0]
[1693919889455,12.26830368,19.675,19.661,20.0]
[1693919891445,37.88430368,19.675,19.66,31.45]
[1693919891647,55.0,19.674,19.66,31.45]
[1693919891848,7.93,19.67,19.66,31.45]
[1693919892044,59.34030368,19.669,19.652,25.36393245]
[1693919892246,67.27130368,19.669,19.653,20.0]
[1693919893955,59.34030368,19.669,19.66,31.45]
[1693919896559,4.34030368,19.669,19.66,31.45]
[1693919901450,4.34030368,19.67,19.66,31.45]
[1693919903149,4.34030368,19.672,19.66,31.45]
[1693919903961,12.27030368,19.672,19.66,31.45]
[1693919921275,12.27030368,19.672,19.66,30.95]
[1693919924975,4.34030368,19.672,19.66,30.95]
[1693919925294,4.34030368,19.68,19.661,75.60430668]
[1693919925586,7.926,19.681,19.67,31.45]
[1693919925777,4.34030368,19.68,19.67,31.45]
[1693919926184,4.34030368,19.682,19.67,31.45]
[1693919927581,67.26630368,19.682,19.67,31.45]
[1693919930777,4.34030368,19.682,19.67,31.45]
[1693919931088,4.34030368,19.683,19.67,31.45]
[1693919931280,4.34030368,19.684,19.67,31.45]
[1693919932092,7.925,19.683,19.67,31.45]
[1693919932390,4.34030368,19.682,19.67,31.45]
[1693919932595,12.26630368,19.682,19.67,31.45]
[1693919935892,55.0,19.681,19.67,31.45]
[1693919936100,4.34030368,19.68,19.67,31.45]
[1693919936684,12.26730368,19.68,19.67,31.45]
[1693919940798,7.926,19.68,19.67,31.45]
[1693919940997,4.34030368,19.683,19.671,55.0]
[1693919941199,4.34030368,19.681,19.67,31.45]